fUSD/lending_fUSD_20250530
["ID","MTS","AMOUNT","RATE_DAILY","PERIOD"]
[363133064,1748595394166,-266.44591845,0.000411,120]
[363133065,1748595394193,-266.44591845,0.000411,120]
[363133066,1748595394219,-266.44,0.000411,120]
[363133067,1748595394244,-621.70714306,0.000411,120]
[363133068,1748595394271,-621.70714306,0.000411,120]
[363133069,1748595394300,-621.70714306,0.000411,120]
[363133070,1748595394326,-621.70714306,0.000411,120]
[363133071,1748595394353,-621.70714306,0.000411,120]
[363133072,1748595394379,-621.70714306,0.000411,120]
[363133073,1748595394407,-621.70714306,0.000411,120]
[363133074,1748595394434,-621.70714306,0.000411,120]
[363133075,1748595394459,-621.70714306,0.000411,120]
[363133076,1748595394486,-621.70714306,0.000411,120]
[363133077,1748595394511,-621.70714306,0.000411,120]
[363133078,1748595394536,-621.70714306,0.000411,120]
[363133079,1748595394563,-621.70714306,0.000411,120]
[363133080,1748595394588,-621.70714306,0.000411,120]
[363133081,1748595394614,-621.70714306,0.000411,120]
[363133082,1748595394643,-621.70714306,0.000411,120]
[363133083,1748595394672,-621.70714306,0.000411,120]
[363133084,1748595394702,-621.70714306,0.000411,120]
[363133085,1748595394728,-621.70714306,0.000411,120]
[363133086,1748595394754,-621.7,0.000411,120]
[363133087,1748595394780,-264.48649527,0.000411,120]
[363133088,1748595394805,-264.48649527,0.000411,120]
[363133089,1748595394831,-264.48649527,0.000411,120]
[363133090,1748595394856,-264.48649527,0.000411,120]
[363133091,1748595395035,-264.48649527,0.000411,120]
[363133092,1748595395101,-264.48649527,0.000411,120]
[363133093,1748595395128,-264.48649527,0.000411,120]
[363133094,1748595395155,-264.48649527,0.000411,120]
[363133095,1748595395182,-264.48649527,0.000411,120]
[363133096,1748595395207,-264.48649527,0.000411,120]
[363133097,1748595395233,-264.48649527,0.000411,120]
[363133098,1748595395259,-264.48649527,0.000411,120]
[363133099,1748595395285,-264.48649527,0.000411,120]
[363133100,1748595395311,-264.48649527,0.000411,120]
[363133101,1748595395336,-264.48649527,0.000411,120]
[363133102,1748595395362,-264.48649527,0.000411,120]
[363133103,1748595395388,-264.48649527,0.000411,120]
[363133104,1748595395414,-264.48649527,0.000411,120]
[363133105,1748595395439,-264.48649527,0.000411,120]
[363133106,1748595395463,-264.48,0.000411,120]
[363133107,1748595395488,-617.13515563,0.000411,120]
[363133108,1748595395514,-617.13515563,0.000411,120]
[363133109,1748595395539,-617.13515563,0.000411,120]
[363133110,1748595395566,-617.13515563,0.000411,120]
[363133111,1748595395591,-617.13515563,0.000411,120]
[363133112,1748595395619,-617.13515563,0.000411,120]
[363133113,1748595395645,-617.13515563,0.000411,120]
[363133114,1748595395673,-617.13515563,0.000411,120]
[363133115,1748595395697,-617.13515563,0.000411,120]
[363133116,1748595395722,-617.13515563,0.000411,120]
[363133117,1748595395747,-617.13515563,0.000411,120]
[363133118,1748595395773,-617.13515563,0.000411,120]
[363133119,1748595395798,-617.13515563,0.000411,120]
[363133120,1748595395823,-617.13515563,0.000411,120]
[363133121,1748595395848,-617.13515563,0.000411,120]
[363133122,1748595395873,-617.13515563,0.000411,120]
[363133123,1748595395903,-617.13515563,0.000411,120]
[363133124,1748595395929,-617.13515563,0.000411,120]
[363133125,1748595395955,-617.13515563,0.000411,120]
[363133126,1748595395982,-617.13,0.000411,120]
[363133127,1748595396009,-487.95711246,0.000411,120]
[363133128,1748595396035,-487.95711246,0.000411,120]
[363133129,1748595396064,-487.95711246,0.000411,120]
[363133130,1748595396090,-487.95711246,0.000411,120]
[363133131,1748595396116,-487.95711246,0.000411,120]
[363133132,1748595396142,-487.95711246,0.000411,120]
[363133133,1748595396170,-487.95711246,0.000411,120]
[363133134,1748595396196,-487.95711246,0.000411,120]
[363133135,1748595396223,-487.95711246,0.000411,120]
[363133136,1748595396250,-487.95711246,0.000411,120]
[363133137,1748595396275,-487.95711246,0.000411,120]
[363133138,1748595396302,-487.95711246,0.000411,120]
[363133139,1748595396328,-487.95711246,0.000411,120]
[363133140,1748595396355,-487.95711246,0.000411,120]
[363133141,1748595396381,-487.95711246,0.000411,120]
[363133142,1748595396407,-487.95711246,0.000411,120]
[363133143,1748595396434,-487.95711246,0.000411,120]
[363133144,1748595396459,-487.95711246,0.000411,120]
[363133145,1748595396484,-487.95711246,0.000411,120]
[363133146,1748595396510,-487.95,0.000411,120]
[363133147,1748595396535,-1138.56659574,0.000411,120]
[363133148,1748595396562,-1138.56659574,0.000411,120]
[363133149,1748595396587,-1138.56659574,0.000411,120]
[363133150,1748595396613,-1138.56659574,0.000411,120]
[363133151,1748595396643,-1138.56659574,0.000411,120]
[363133152,1748595396669,-1138.56659574,0.000411,120]
[363133153,1748595396696,-1138.56659574,0.000411,120]
[363133154,1748595396722,-1138.56659574,0.000411,120]
[363133155,1748595396749,-1138.56659574,0.000411,120]
[363133156,1748595396775,-1138.56659574,0.000411,120]
[363133157,1748595396801,-1138.56659574,0.000411,120]
[363133158,1748595396827,-1138.56659574,0.000411,120]
[363133159,1748595396853,-1138.56659574,0.000411,120]
[363133160,1748595396879,-1138.56659574,0.000411,120]
[363133161,1748595396905,-1138.56659574,0.000411,120]
[363133162,1748595396932,-1138.56659574,0.000411,120]
[363133163,1748595396959,-1138.56659574,0.000411,120]
[363133164,1748595396985,-1138.56659574,0.000411,120]
[363133165,1748595397011,-1138.56659574,0.000411,120]
[363133166,1748595397038,-1138.56,0.000411,120]
[363133167,1748595397065,-150.0,0.00041162,120]
[363133168,1748595397094,-176.47,0.00041177,120]
[363133169,1748595397120,-728.80392264,0.00041193,60]
[363133170,1748595397148,-229.60516265,0.00041193,60]
[363133171,1748595397176,-150.0,0.00041204,120]
[363133172,1748595397202,-500.0,0.00041204,30]
[363133173,1748595397265,-150.0,0.00041257,120]
[363133174,1748595397292,-1867.98,0.0004128,90]
[363133175,1748595397318,-461.12801,0.00041288,30]
[363133176,1748595397345,-150.0,0.00041361,120]
[363133177,1748595397370,-500.0,0.00041397,120]
[363133178,1748595397395,-500.0,0.00041397,120]
[363133179,1748595397421,-500.0,0.00041397,120]
[363133180,1748595397446,-500.0,0.00041397,120]
[363133181,1748595397471,-500.0,0.00041397,120]
[363133182,1748595397496,-500.0,0.00041397,120]
[363133183,1748595397521,-500.0,0.00041397,120]
[363133184,1748595397546,-500.0,0.00041397,120]
[363133185,1748595397782,-500.0,0.00041397,120]
[363133186,1748595397809,-500.0,0.00041397,120]
[363133187,1748595397834,-500.0,0.00041397,120]
[363133188,1748595397859,-500.0,0.00041397,120]
[363133189,1748595397884,-500.0,0.00041397,120]
[363133190,1748595397909,-500.0,0.00041397,120]
[363133191,1748595397936,-500.0,0.00041397,120]
[363133192,1748595397961,-500.0,0.00041397,120]
[363133193,1748595397986,-500.0,0.00041397,120]
[363133194,1748595398014,-439.46736805,0.00041397,120]
[363133195,1748595398040,-2000.0,0.000414,120]
[363133196,1748595398067,-2000.0,0.000414,120]
[363133197,1748595398093,-559.17196556,0.00041478,30]
[363133198,1748595398119,-461.12801,0.00041488,30]
[363133199,1748595398146,-160.0,0.000415,39]
[363133200,1748595398173,-1000.0,0.000415,60]
[363133201,1748595398199,-339.393291,0.000415,120]
[363133202,1748595398223,-152.0,0.000416,120]
[363133203,1748595398250,-153.0,0.00041686,30]
[363133204,1748595398278,-461.12801,0.00041688,30]
[363133205,1748595398308,-150.0,0.00041751,120]
[363133206,1748595398334,-869.19580764,0.000418,120]
[363133207,1748595398361,-150.0,0.0004181,120]
[363133208,1748595398393,-150.0,0.00041856,120]
[363133209,1748595398428,-461.12801,0.00041888,30]
[363133210,1748595398455,-338.05806331,0.000419,120]
[363133211,1748595398481,-1399.65760845,0.000419,30]
[363133212,1748595398515,-236.02,0.000419,31]
[363133213,1748595398548,-236.02,0.000419,31]
[363133214,1748595398580,-236.02,0.000419,31]
[363133215,1748595398613,-236.02,0.000419,31]
[363133216,1748595398650,-236.02,0.000419,31]
[363133217,1748595398683,-236.02,0.000419,31]
[363133218,1748595398715,-236.02,0.000419,31]
[363133219,1748595398746,-236.02,0.000419,31]
[363133220,1748595398777,-236.02,0.000419,31]
[363133221,1748595398808,-236.02,0.000419,31]
[363133222,1748595398838,-236.02,0.000419,31]
[363133223,1748595398869,-236.02,0.000419,31]
[363133224,1748595398901,-236.02,0.000419,31]
[363133225,1748595398933,-236.02,0.000419,31]
[363133226,1748595398965,-236.02,0.000419,31]
[363133227,1748595399007,-236.02,0.000419,31]
[363133228,1748595399041,-236.02,0.000419,31]
[363133229,1748595399074,-236.02,0.000419,31]
[363133230,1748595399107,-236.02,0.000419,31]
[363133231,1748595399140,-236.02,0.000419,31]
[363133232,1748595399174,-236.02,0.000419,31]
[363133233,1748595399207,-236.02,0.000419,31]
[363133234,1748595399240,-236.02,0.000419,31]
[363133235,1748595399274,-236.02,0.000419,31]
[363133236,1748595399302,-315.9652326,0.00041918,30]
[363133237,1748595399329,-263.02499752,0.00041918,30]
[363133238,1748595399356,-150.0,0.00041918,30]
[363133239,1748595399383,-150.0,0.00041918,30]
[363133240,1748595399409,-150.0,0.00041918,30]
[363133241,1748595399437,-150.0,0.00041918,30]
[363133242,1748595399465,-150.0,0.00041918,30]
[363133243,1748595399492,-150.0,0.00041918,30]
[363133244,1748595399518,-150.0,0.00041918,30]
[363133245,1748595399550,-150.0,0.00041918,30]
[363133246,1748595399577,-150.0,0.00041918,30]
[363133247,1748595399604,-150.0,0.00041918,30]
[363133248,1748595399634,-150.0,0.00041918,30]
[363133249,1748595399661,-163.04,0.00041918,30]
[363133250,1748595399689,-163.05,0.00041918,30]
[363133251,1748595399719,-150.0,0.00041918,30]
[363133252,1748595399746,-150.0,0.00041918,30]
[363133253,1748595399773,-315.9652326,0.00041965,30]
[363133254,1748595399801,-263.02499752,0.00041965,30]
[363133255,1748595399831,-150.0,0.00041969,30]
[363133256,1748595399858,-150.5,0.0004197,120]
[363133257,1748595399888,-150.5,0.0004197,120]
[363133258,1748595399917,-150.5,0.0004197,120]
[363133259,1748595399947,-7186.0,0.0004197,120]
[363133260,1748595399976,-320.0,0.0004197,120]
[363133261,1748595400003,-7186.0,0.0004197,120]
[363133262,1748595400032,-320.0,0.0004197,120]
[363133263,1748595400065,-150.5,0.0004198,120]
[363133264,1748595400093,-150.5,0.0004198,120]
[363133265,1748595400121,-150.5,0.0004198,120]
[363133266,1748595400149,-150.5,0.0004198,120]
[363133267,1748595400178,-238.45,0.0004198,120]
[363133268,1748595400206,-7186.0,0.0004198,120]
[363133269,1748595400234,-320.0,0.0004198,120]
[363133270,1748595400262,-7186.0,0.0004198,120]
[363133271,1748595400289,-320.0,0.0004198,120]
[363133272,1748595400316,-7186.0,0.0004198,120]
[363133273,1748595400344,-320.0,0.0004198,120]
[363133274,1748595400373,-323.07,0.0004198,120]
[363133275,1748595400400,-7186.21,0.0004198,120]
[363133276,1748595400428,-150.5,0.0004199,120]
[363133277,1748595400455,-150.5,0.0004199,120]
[363133278,1748595400485,-253.5,0.0004199,120]
[363133279,1748595400767,-150.5,0.0004199,120]
[363133280,1748595400794,-150.5,0.0004199,120]
[363133281,1748595400827,-150.5,0.0004199,120]
[363133282,1748595400854,-271.63,0.0004199,120]
[363133283,1748595400880,-7186.0,0.0004199,120]
[363133284,1748595400907,-320.0,0.0004199,120]
[363133285,1748595400935,-7186.0,0.0004199,120]
[363133286,1748595400963,-320.0,0.0004199,120]
[363133287,1748595400989,-7186.0,0.0004199,120]
[363133288,1748595401016,-320.0,0.0004199,120]
[363133289,1748595401041,-320.0,0.0004199,120]
[363133290,1748595401067,-7186.0,0.0004199,120]
[363133291,1748595401093,-150.0,0.00041999,30]
[363133292,1748595401123,-50000.0,0.00042,42]
[363133293,1748595401153,-50000.0,0.00042,32]
[363133294,1748595401178,-300.0,0.00042,120]
[363133295,1748595401205,-942.87887494,0.00042,120]
[363133296,1748595401233,-391.32138562,0.00042,120]
[363133297,1748595401260,-204.13379355,0.00042,120]
[363133298,1748595401286,-1085.14020106,0.00042,30]
[363133299,1748595401315,-800.15725609,0.00042,120]
[363133300,1748595401340,-494.47690159,0.00042,30]
[363133301,1748595401374,-2076.0,0.00042,120]
[363133302,1748595401408,-845.920751,0.00042,120]
[363133303,1748595401437,-600.0,0.00042,120]
[363133304,1748595401464,-197.62578379,0.00042,30]
[363133305,1748595401490,-7613.70624748,0.00042,120]
[363133306,1748595401517,-109300.01,0.00042,120]
[363133307,1748595401544,-315.9652326,0.00042012,30]
[363133308,1748595401572,-263.02499752,0.00042012,30]
[363133309,1748595401598,-150.0,0.00042017,30]
[363133310,1748595401627,-150.0,0.00042021,30]
[363133311,1748595401654,-150.0,0.00042051,30]
[363133312,1748595401684,-315.9652326,0.00042059,30]
[363133313,1748595401712,-263.02499752,0.00042059,30]
[363133314,1748595401739,-150.0,0.00042073,30]
[363133315,1748595401765,-150.0,0.00042081,30]
[363133316,1748595401792,-150.0,0.00042084,30]
[363133317,1748595401820,-315.9652326,0.00042106,30]
[363133318,1748595401847,-263.02499752,0.00042106,30]
[363133319,1748595401875,-150.0,0.00042116,30]
[363133320,1748595401909,-620.82405219,0.00042121,120]
[363133321,1748595401937,-150.0,0.00042125,30]
[363133322,1748595401965,-315.9652326,0.00042153,30]
[363133323,1748595401993,-263.02499752,0.00042153,30]
[363133324,1748595402022,-150.0,0.00042163,30]
[363133325,1748595402049,-150.0,0.00042176,30]
[363133326,1748595402078,-150.0,0.00042184,30]
[363133327,1748595402106,-150.0,0.00042191,30]
[363133328,1748595402138,-315.9652326,0.000422,30]
[363133329,1748595402166,-263.02499752,0.000422,30]
[363133330,1748595402194,-200000.0,0.00042209,120]
[363133331,1748595402221,-150.0,0.00042215,30]
[363133332,1748595402251,-150.0,0.00042228,30]
[363133333,1748595402279,-150.0,0.00042244,30]
[363133334,1748595402306,-315.9652326,0.00042247,30]
[363133335,1748595402334,-263.02499752,0.00042247,30]
[363133336,1748595402362,-150.0,0.0004225,30]
[363133337,1748595402392,-150.0,0.00042264,120]
[363133338,1748595402420,-150.0,0.00042275,120]
[363133339,1748595402447,-150.0,0.0004228,30]
[363133340,1748595402474,-1867.98,0.0004228,90]
[363133341,1748595402501,-315.9652326,0.00042294,30]
[363133342,1748595402528,-263.02499752,0.00042294,30]
[363133343,1748595402555,-150.0,0.00042306,30]
[363133344,1748595402581,-150.0,0.00042312,120]
[363133345,1748595402608,-150.0,0.00042314,30]
[363133346,1748595402638,-150.0,0.00042317,30]
[363133347,1748595402666,-150.0,0.00042326,30]
[363133348,1748595402694,-150.0,0.00042332,30]
[363133349,1748595402721,-315.9652326,0.00042341,30]
[363133350,1748595402748,-263.02499752,0.00042341,30]
[363133351,1748595402774,-150.0,0.00042383,30]
[363133352,1748595402801,-150.0,0.00042383,30]
[363133353,1748595402828,-150.0,0.00042383,30]
[363133354,1748595402860,-150.0,0.00042386,120]
[363133355,1748595402886,-315.9652326,0.00042388,30]
[363133356,1748595402913,-263.02499752,0.00042388,30]
[363133357,1748595402940,-1400.1962067,0.000424,120]
[363133358,1748595402967,-472.822701,0.000424,30]
[363133359,1748595402994,-150.0,0.00042408,30]
[363133360,1748595403021,-150.0,0.00042413,30]
[363133361,1748595403048,-150.0,0.00042417,30]
[363133362,1748595403076,-315.9652326,0.00042435,30]
[363133363,1748595403109,-263.02499752,0.00042435,30]
[363133364,1748595403136,-150.0,0.00042435,30]
[363133365,1748595403163,-150.0,0.00042443,120]
[363133366,1748595403189,-150.0,0.0004245,30]
[363133367,1748595403216,-150.0,0.00042465,30]
[363133368,1748595403244,-500.0,0.0004248,90]
[363133369,1748595403271,-315.9652326,0.00042482,30]
[363133370,1748595403298,-263.02499752,0.00042482,30]
[363133371,1748595403324,-150.0,0.00042487,30]
[363133372,1748595403352,-150.0,0.00042489,30]
[363133373,1748595403609,-160.0,0.000425,44]
[363133374,1748595403637,-528.92186887,0.000425,60]
[363133375,1748595403665,-1000.0,0.000425,70]
[363133376,1748595403691,-150.0,0.00042512,30]
[363133377,1748595403718,-315.9652326,0.00042529,30]
[363133378,1748595403744,-263.02499752,0.00042529,30]
[363133379,1748595403770,-150.0,0.00042539,30]
[363133380,1748595403796,-176.47,0.00042547,120]
[363133381,1748595403822,-150.0,0.00042571,30]
[363133382,1748595403849,-315.9652326,0.00042576,30]
[363133383,1748595403875,-263.02499752,0.00042576,30]
[363133384,1748595403901,-154.99014742,0.0004258,60]
[363133385,1748595403927,-150.0,0.00042583,30]
[363133386,1748595403953,-150.0,0.00042583,30]
[363133387,1748595403979,-150.0,0.0004259,30]
[363133388,1748595404004,-150.0,0.00042611,30]
[363133389,1748595404030,-315.9652326,0.00042623,30]
[363133390,1748595404056,-263.02499752,0.00042623,30]
[363133391,1748595404082,-150.0,0.00042642,30]
[363133392,1748595404108,-150.0,0.00042653,30]
[363133393,1748595404134,-315.9652326,0.0004267,30]
[363133394,1748595404161,-263.02499752,0.0004267,30]
[363133395,1748595404189,-150.0,0.00042694,30]
[363133396,1748595404214,-150.0,0.00042694,30]
[363133397,1748595404239,-250.02591332,0.000427,120]
[363133398,1748595404265,-150.0,0.000427,120]
[363133399,1748595404291,-165.43209,0.000427,120]
[363133400,1748595404317,-235.24551244,0.000427,120]
[363133401,1748595404344,-150.0,0.0004271,30]
[363133402,1748595404372,-150.0,0.00042716,30]
[363133403,1748595404398,-315.9652326,0.00042717,30]
[363133404,1748595404425,-263.02499752,0.00042717,30]
[363133405,1748595404451,-150.0,0.00042735,30]
[363133406,1748595404478,-500.0,0.00042739,60]
[363133407,1748595404503,-500.0,0.00042739,60]
[363133408,1748595404529,-150.0,0.00042739,30]
[363133409,1748595404555,-150.0,0.0004274,30]
[363133410,1748595404581,-300.0,0.0004274,30]
[363133411,1748595404607,-150.0,0.00042746,30]
[363133412,1748595404636,-150.0,0.00042749,30]
[363133413,1748595404663,-315.9652326,0.00042764,30]
[363133414,1748595404691,-263.02499752,0.00042764,30]
[363133415,1748595404719,-150.0,0.00042797,30]
[363133416,1748595404745,-150.0,0.00042809,30]
[363133417,1748595404771,-315.9652326,0.00042811,30]
[363133418,1748595404798,-263.02499752,0.00042811,30]
[363133419,1748595404824,-150.0,0.00042816,30]
[363133420,1748595404851,-150.0,0.00042849,30]
[363133421,1748595404878,-150.0,0.00042849,30]
[363133422,1748595404904,-150.0,0.00042849,30]
[363133423,1748595404932,-150.0,0.00042849,30]
[363133424,1748595404958,-315.9652326,0.00042858,30]
[363133425,1748595404985,-263.02499752,0.00042858,30]
[363133426,1748595405013,-150.0,0.00042895,120]
[363133427,1748595405039,-150.0,0.00042898,30]
[363133428,1748595405065,-150.0,0.00042901,30]
[363133429,1748595405091,-315.9652326,0.00042905,30]
[363133430,1748595405117,-263.02499752,0.00042905,30]
[363133431,1748595405143,-150.0,0.00042908,30]
[363133432,1748595405170,-150.0,0.00042916,30]
[363133433,1748595405197,-315.9652326,0.00042953,30]
[363133434,1748595405223,-263.02499752,0.00042953,30]
[363133435,1748595405249,-150.0,0.00042953,30]
[363133436,1748595405276,-150.0,0.0004298,30]
[363133437,1748595405303,-150.0,0.00042982,30]
[363133438,1748595405331,-315.9652326,0.00043,30]
[363133439,1748595405358,-263.02499752,0.00043,30]
[363133440,1748595405391,-50000.0,0.00043,43]
[363133441,1748595405422,-50000.0,0.00043,33]
[363133442,1748595405448,-244.03011562,0.00043,30]
[363133443,1748595405472,-1135.7105101,0.00043,120]
[363133444,1748595405498,-512.04729273,0.00043,120]
[363133445,1748595405523,-173.71322473,0.00043,120]
[363133446,1748595405548,-1000.0,0.00043,75]
[363133447,1748595405575,-3145.0,0.00043,120]
[363133448,1748595405601,-1233.0,0.00043,120]
[363133449,1748595405628,-200.0,0.00043,120]
[363133450,1748595405654,-2315.86,0.00043,120]
[363133451,1748595405682,-755.89,0.00043,120]
[363133452,1748595405708,-177.16,0.00043,120]
[363133453,1748595405732,-150.0,0.00043004,30]
[363133454,1748595405757,-150.0,0.00043008,30]
[363133455,1748595405782,-150.0,0.00043013,30]
[363133456,1748595405808,-315.9652326,0.00043047,30]
[363133457,1748595405835,-263.02499752,0.00043047,30]
[363133458,1748595405862,-150.0,0.00043056,30]
[363133459,1748595405887,-450.534,0.00043056,120]
[363133460,1748595405913,-450.534,0.00043056,120]
[363133461,1748595405939,-450.534,0.00043056,120]
[363133462,1748595405965,-450.534,0.00043056,120]
[363133463,1748595405991,-450.535,0.00043056,120]
[363133464,1748595406018,-150.0,0.00043061,30]
[363133465,1748595406046,-150.0,0.00043082,30]
[363133466,1748595406070,-150.0,0.00043082,30]
[363133467,1748595406285,-150.0,0.00043082,30]
[363133468,1748595406312,-315.9652326,0.00043094,30]
[363133469,1748595406338,-263.02499752,0.00043094,30]
[363133470,1748595406363,-150.0,0.00043107,30]
[363133471,1748595406390,-150.0,0.00043108,30]
[363133472,1748595406416,-150.0,0.00043115,30]
[363133473,1748595406446,-315.9652326,0.00043141,30]
[363133474,1748595406472,-263.02499752,0.00043141,30]
[363133475,1748595406497,-150.0,0.00043143,30]
[363133476,1748595406524,-460.46,0.00043151,30]
[363133477,1748595406551,-460.46,0.00043151,30]
[363133478,1748595406578,-460.46,0.00043151,30]
[363133479,1748595406604,-919.65,0.00043151,30]
[363133480,1748595406630,-460.46,0.00043151,30]
[363133481,1748595406657,-844.49,0.00043151,30]
[363133482,1748595406683,-150.0,0.0004316,30]
[363133483,1748595406711,-315.9652326,0.00043188,30]
[363133484,1748595406738,-263.02499752,0.00043188,30]
[363133485,1748595406763,-150.0,0.00043206,30]
[363133486,1748595406789,-150.0,0.00043211,30]
[363133487,1748595406814,-150.0,0.00043225,30]
[363133488,1748595406840,-315.9652326,0.00043235,30]
[363133489,1748595406866,-263.02499752,0.00043235,30]
[363133490,1748595406891,-150.0,0.00043248,30]
[363133491,1748595406918,-150.0,0.00043248,30]
[363133492,1748595406944,-150.0,0.00043263,30]
[363133493,1748595406972,-1966.88,0.0004328,90]
[363133494,1748595406999,-315.9652326,0.00043282,30]
[363133495,1748595407027,-263.02499752,0.00043282,30]
[363133496,1748595407057,-150.0,0.00043287,30]
[363133497,1748595407082,-150.0,0.00043305,30]
[363133498,1748595407108,-150.0,0.00043307,30]
[363133499,1748595407133,-150.0,0.00043315,30]
[363133500,1748595407159,-150.0,0.00043315,30]
[363133501,1748595407186,-150.0,0.00043315,30]
[363133502,1748595407213,-315.9652326,0.00043329,30]
[363133503,1748595407239,-263.02499752,0.00043329,30]
[363133504,1748595407266,-150.0,0.00043367,30]
[363133505,1748595407292,-315.9652326,0.00043376,30]
[363133506,1748595407319,-263.02499752,0.00043376,30]
[363133507,1748595407344,-150.0,0.00043381,30]
[363133508,1748595407372,-150.0,0.00043388,30]
[363133509,1748595407399,-296.29629,0.000434,120]
[363133510,1748595407425,-150.0,0.000434,120]
[363133511,1748595407452,-200000.0,0.000434,120]
[363133512,1748595407478,-150.0,0.00043404,30]
[363133513,1748595407506,-150.0,0.0004341,120]
[363133514,1748595407532,-150.0,0.00043415,30]
[363133515,1748595407560,-150.0,0.00043418,30]
[363133516,1748595407588,-315.9652326,0.00043423,30]
[363133517,1748595407617,-263.02499752,0.00043423,30]
[363133518,1748595407648,-4347.506061,0.0004347,30]
[363133519,1748595407677,-315.9652326,0.0004347,30]
[363133520,1748595407704,-263.02499752,0.0004347,30]
[363133521,1748595407731,-150.0,0.0004347,30]
[363133522,1748595407758,-150.0,0.0004347,30]
[363133523,1748595407784,-150.0,0.0004347,30]
[363133524,1748595407810,-160.0,0.000435,48]
[363133525,1748595407837,-1064.0,0.000435,90]
[363133526,1748595407864,-150.0,0.00043503,30]
[363133527,1748595407891,-150.0,0.00043514,30]
[363133528,1748595407917,-315.9652326,0.00043517,30]
[363133529,1748595407945,-263.02499752,0.00043517,30]
[363133530,1748595407972,-150.0,0.00043522,30]
[363133531,1748595407999,-150.0,0.00043552,30]
[363133532,1748595408026,-150.0,0.00043561,30]
[363133533,1748595408053,-315.9652326,0.00043564,30]
[363133534,1748595408081,-263.02499752,0.00043564,30]
[363133535,1748595408108,-150.0,0.00043574,30]
[363133536,1748595408135,-150.0,0.00043581,30]
[363133537,1748595408162,-1574.08,0.000436,120]
[363133538,1748595408190,-735.73,0.000436,120]
[363133539,1748595408218,-264.19,0.000436,120]
[363133540,1748595408244,-264.48,0.000436,120]
[363133541,1748595408271,-150.0,0.00043602,30]
[363133542,1748595408300,-150.0,0.0004361,120]
[363133543,1748595408327,-315.9652326,0.00043611,30]
[363133544,1748595408354,-263.02499752,0.00043611,30]
[363133545,1748595408381,-150.0,0.00043625,30]
[363133546,1748595408408,-150.0,0.00043633,30]
[363133547,1748595408435,-150.0,0.00043647,30]
[363133548,1748595408462,-315.9652326,0.00043658,30]
[363133549,1748595408489,-263.02499752,0.00043658,30]
[363133550,1748595408515,-150.0,0.00043677,30]
[363133551,1748595408542,-226.00462839,0.000437,120]
[363133552,1748595408570,-150.0,0.00043701,30]
[363133553,1748595408597,-315.9652326,0.00043705,30]
[363133554,1748595408629,-263.02499752,0.00043705,30]
[363133555,1748595408657,-150.0,0.00043715,30]
[363133556,1748595408686,-150.0,0.00043729,30]
[363133557,1748595408713,-150.0,0.00043747,30]
[363133558,1748595408740,-315.9652326,0.00043752,30]
[363133559,1748595408767,-263.02499752,0.00043752,30]
[363133560,1748595408794,-150.0,0.00043781,30]
[363133561,1748595408820,-150.0,0.00043781,30]
[363133562,1748595409040,-150.0,0.00043781,30]
[363133563,1748595409069,-150.0,0.00043781,30]